bitfinex/quotes_ETHUSD_20250520
["timestamp","ask_amount","ask_price","bid_price","bid_amount"]
[1747773485403,14.22259647,2504.2,2504.1,0.1]
[1747773485739,13.67259647,2504.2,2504.1,0.1]
[1747773486140,13.66446718,2504.2,2504.1,0.1]
[1747773487538,15.40880112,2504.2,2504.1,0.1]
[1747773487736,3.99488654,2503.2,2503.1,0.1]
[1747773488156,8.63232719,2503.2,2503.1,0.1]
[1747773488546,3.99488654,2503.2,2503.1,0.1]
[1747773491964,11.99488654,2503.2,2503.1,0.1]
[1747773492668,12.54488654,2503.2,2503.1,0.1]
[1747773492845,14.74277477,2503.2,2503.1,0.1]
[1747773493042,14.19277477,2503.2,2503.1,0.1]
[1747773493571,3.99488654,2503.2,2503.1,0.1]
[1747773494566,3.99488654,2503.2,2503.1,0.8615]
[1747773496283,3.9947529,2503.3,2503.1,0.8615]
[1747773496648,3.9947529,2503.3,2503.1,0.90144642]
[1747773496843,3.99465851,2503.4,2503.1,0.8615]
[1747773497183,3.99304319,2504.4,2503.1,0.8615]
[1747773497184,3.9933007,2504.2,2503.2,0.764]
[1747773497371,3.99472696,2503.3,2503.2,0.764]
[1747773497556,3.99472696,2503.3,2503.2,17.746]
[1747773497761,3.99472696,2503.3,2503.2,22.4209]
[1747773498450,3.99449326,2503.5,2503.3,0.764]
[1747773498654,3.99449326,2503.5,2503.2,21.6569]
[1747773498655,3.99361022,2504.0,2503.4,13.196]
[1747773499067,3.99440608,2503.6,2503.4,13.196]
[1747773499282,3.99414611,2503.7,2503.4,13.196]
[1747773499599,3.99440782,2503.5,2503.4,0.764]
[1747773499751,3.99440782,2503.5,2503.4,22.176]
[1747773500689,3.99440782,2503.5,2503.4,22.55226169]
[1747773501392,3.99440782,2503.5,2503.4,1.14026169]
[1747773501596,3.99427818,2503.6,2503.4,22.55226169]
[1747773501597,3.99434406,2503.6,2503.4,22.55226169]
[1747773501889,8.0,2504.9,2503.6,0.8203]
[1747773502091,3.99202836,2505.0,2503.7,3.38578588]
[1747773502288,3.56316011,2505.6,2504.3,0.8203]
[1747773502586,3.99265351,2504.6,2504.5,0.8203]
[1747773502787,3.99265351,2504.6,2504.5,22.2323]
[1747773503295,3.99265351,2504.6,2504.5,22.60856169]
[1747773506006,3.99265351,2504.6,2504.5,22.60456169]
[1747773509104,3.99265351,2504.6,2504.5,12.80426169]
[1747773509265,4.79117119,2504.6,2504.5,12.80426169]
[1747773509467,4.79117119,2504.6,2504.5,0.37626169]
[1747773509796,4.79117119,2504.6,2504.5,12.80426169]
[1747773509997,4.79117119,2504.6,2504.5,12.428]
[1747773512909,3.99281293,2504.5,2504.4,17.244]
[1747773513110,5.27046367,2504.5,2504.4,29.672]
[1747773514196,3.99281293,2504.5,2504.4,29.672]
[1747773514917,3.99281293,2504.5,2504.4,30.4705]
[1747773516791,3.99281293,2504.5,2504.4,39.4495]
[1747773517671,3.99281293,2504.5,2504.4,39.82643252]
[1747773519007,3.99281293,2504.5,2504.4,39.4495]
[1747773520013,3.99281293,2504.5,2504.4,18.0425]
[1747773520319,3.99281293,2504.5,2504.4,39.4475]
[1747773522604,3.99281293,2504.5,2504.4,39.9975]
[1747773522805,3.99281293,2504.5,2504.4,40.37528507]
[1747773528132,3.99281293,2504.5,2504.4,31.39728507]
[1747773528433,3.99281293,2504.5,2504.4,40.37428507]
[1747773535143,3.99169726,2505.2,2504.5,0.55]
[1747773535350,3.99249411,2504.7,2504.6,0.58992233]
[1747773535530,0.7894,2505.6,2504.7,8.55]
[1747773535719,3.99201596,2505.0,2504.9,1.3672]
[1747773536040,3.99201596,2505.0,2504.9,13.6032]
[1747773536197,3.99201596,2505.0,2504.9,19.65328]
[1747773536401,3.99201596,2505.0,2504.9,20.03106507]
[1747773537418,3.99201596,2505.0,2504.9,29.00806507]
[1747773539251,3.99201596,2505.0,2504.9,29.00606507]
[1747773540944,3.97666498,2505.0,2504.9,29.00606507]
[1747773541252,3.99172599,2505.2,2504.9,37.00606507]
[1747773541458,3.99153476,2505.4,2505.0,8.55]
[1747773541657,3.99074147,2505.8,2505.0,8.55]
[1747773541819,3.991309,2505.5,2505.0,11.34435502]
[1747773542023,3.991309,2505.5,2505.1,7.70311107]
[1747773542239,3.99106067,2505.6,2505.3,0.55]
[1747773542240,3.99140449,2505.4,2505.3,0.55]
[1747773542549,3.99131075,2505.5,2505.4,8.55]
[1747773542785,3.99131075,2505.5,2505.4,45.343326]
[1747773543420,3.99131075,2505.5,2505.4,25.61178507]
[1747773543626,3.99131075,2505.5,2505.4,46.82178507]
[1747773544653,4.87034461,2505.5,2505.4,17.61178507]
[1747773545046,4.87034461,2505.5,2505.4,29.84478507]
[1747773546573,4.87034461,2505.5,2505.4,29.467]
[1747773548057,4.86481401,2505.5,2505.4,29.467]
[1747773549157,4.86481401,2505.5,2505.4,17.234]
[1747773549358,4.86481401,2505.5,2505.4,29.467]
[1747773553097,3.98578015,2505.5,2505.4,29.467]
[1747773554965,3.98578015,2505.5,2505.4,29.84618841]
[1747773558010,3.98578015,2505.5,2505.4,17.61318841]
[1747773558159,3.98578015,2505.5,2505.4,38.81018841]
[1747773558561,3.98578015,2505.5,2505.4,17.61318841]
[1747773558767,3.99153793,2505.3,2505.0,0.62612629]
[1747773559069,3.99185661,2505.1,2505.0,0.62612629]
[1747773559926,3.99265351,2504.6,2504.5,12.222]
[1747773560758,3.99185661,2505.1,2504.5,12.222]
[1747773560759,0.78103812,2505.2,2504.5,25.622]
[1747773560983,3.99249411,2504.7,2504.6,29.196]
[1747773562500,3.99236421,2504.8,2504.7,0.55]
[1747773565597,3.99249411,2504.7,2504.6,20.222]
[1747773565897,3.99249411,2504.7,2504.6,29.196]
[1747773566101,3.99265351,2504.6,2504.5,0.7682]
[1747773566303,3.99265351,2504.6,2504.5,29.9652]
[1747773567495,3.99265351,2504.6,2504.5,8.7682]
[1747773567701,3.99265351,2504.6,2504.5,29.197]
[1747773568810,3.99265351,2504.6,2504.5,8.0]
[1747773569011,3.99265351,2504.6,2504.5,20.224]
[1747773569303,3.99265351,2504.6,2504.5,29.199]
[1747773570501,3.99265351,2504.6,2504.5,8.0]
[1747773570795,3.99265351,2504.6,2504.5,29.199]
[1747773571169,3.99265351,2504.6,2504.5,29.57843904]
[1747773577010,3.99265351,2504.6,2504.5,12.60343904]
[1747773577194,6.01958062,2504.6,2504.5,12.60343904]
[1747773577583,6.01958062,2504.6,2504.5,0.37943904]
[1747773578724,3.99329127,2504.2,2504.1,12.224]
[1747773578924,3.98776167,2504.2,2504.1,12.224]
[1747773582821,3.98776167,2504.2,2504.1,21.2]
[1747773583197,3.98776167,2504.2,2504.1,12.224]
[1747773583513,5.55095432,2504.2,2504.1,21.2]
[1747773583714,3.99392922,2503.8,2503.7,8.0]
[1747773583903,3.99392922,2503.8,2503.7,29.203]
[1747773584790,3.99392922,2503.8,2503.7,20.60531897]
[1747773584993,3.99392922,2503.8,2503.7,29.58231897]
[1747773586123,3.99392922,2503.8,2503.7,37.45764497]
[1747773586503,0.7651,2505.1,2504.0,2.79543966]
[1747773586702,0.7651,2505.4,2504.2,0.7744]
[1747773586917,0.7651,2505.7,2504.6,1.3244]
[1747773587117,4.75611844,2505.7,2504.9,0.7744]
[1747773587323,3.99145965,2505.4,2505.0,0.58991086]
[1747773587633,3.99164315,2505.3,2505.0,0.92931897]
[1747773587927,3.99185661,2505.1,2505.0,1.70371897]
[1747773588126,3.99185661,2505.1,2505.0,30.89271897]
[1747773588314,3.99185661,2505.1,2505.0,38.21804497]
[1747773588728,3.99185661,2505.1,2505.0,17.02904497]
[1747773589026,3.99185661,2505.1,2505.0,36.19491897]
[1747773590026,3.99185661,2505.1,2505.0,15.00791897]
[1747773590232,3.99185661,2505.1,2505.0,36.19391897]
[1747773591834,3.99185661,2505.1,2505.0,36.58951371]
[1747773592934,3.99185661,2505.1,2505.0,36.58851371]
[1747773593436,3.99159191,2505.3,2505.1,8.0]
[1747773593635,3.99169726,2505.2,2505.1,8.55]
[1747773593844,3.99169726,2505.2,2505.1,15.875326]
[1747773594341,3.99157947,2505.3,2505.1,14.973936]
[1747773594545,3.99157947,2505.3,2505.2,7.875326]
[1747773595343,0.7651,2506.0,2505.2,7.875326]
[1747773595344,3.99045986,2506.0,2505.5,0.7739]
[1747773595546,4.09067201,2505.9,2505.7,8.55]
[1747773595746,4.09067201,2505.9,2505.8,33.106326]
[1747773597046,4.09067201,2505.9,2505.8,54.288326]
[1747773597563,4.09067201,2505.9,2505.8,54.66764497]
[1747773598345,4.09067201,2505.9,2505.8,54.11764497]
[1747773598550,4.09067201,2505.9,2505.8,46.79131897]
[1747773599118,4.09067201,2505.9,2505.8,46.412]
[1747773600332,0.1,2505.9,2505.8,54.287326]
[1747773600557,4.09058222,2505.9,2505.8,54.287326]
[1747773601349,4.09058222,2505.9,2505.8,49.848536]
[1747773601561,4.09058222,2505.9,2505.8,46.962]
[1747773601942,4.09058222,2505.9,2505.8,51.5909]
[1747773602652,0.1,2505.9,2505.8,51.5909]
[1747773602856,0.1,2505.9,2505.8,54.81844488]
[1747773603231,0.1,2505.9,2505.8,31.243]
[1747773603433,0.1,2505.9,2505.8,52.422]
[1747773603634,0.1,2505.9,2505.8,47.7931]
[1747773603828,0.1,2505.9,2505.8,26.6141]
[1747773604155,0.1,2505.9,2505.8,55.118426]
[1747773604976,0.1,2505.9,2505.8,55.4946479]
[1747773605658,0.1,2505.9,2505.8,57.88909278]
[1747773605861,0.1,2505.9,2505.8,34.3156479]
[1747773606168,0.1,2505.9,2505.8,55.4916479]
[1747773606652,4.09058222,2505.9,2505.8,55.4916479]
[1747773607152,0.1,2505.9,2505.8,55.4916479]
[1747773607857,4.09058222,2505.9,2505.8,55.4916479]
[1747773608060,0.1,2505.9,2505.8,55.4916479]
[1747773608424,0.1,2505.9,2505.8,57.88609278]
[1747773609059,0.1,2505.9,2505.8,55.4916479]
[1747773609362,4.09058222,2505.9,2505.8,17.6072219]
[1747773609544,4.89869568,2505.9,2505.8,38.7822219]
[1747773609865,4.89869568,2505.9,2505.8,46.406]
[1747773610066,4.89869568,2505.9,2505.8,38.406]
[1747773610365,5.65449568,2505.9,2505.8,29.435]
[1747773612236,4.84638222,2505.9,2505.8,29.435]
[1747773612766,4.84638222,2505.9,2505.8,17.231]
[1747773613274,4.84638222,2505.9,2505.8,29.435]
[1747773615146,4.83233308,2505.9,2505.8,29.435]
[1747773615955,4.83233308,2505.9,2505.8,17.231]
[1747773616170,5.71462162,2505.9,2505.8,29.435]
[1747773617554,4.83233308,2505.9,2505.8,29.435]
[1747773620011,4.83233308,2505.9,2505.8,17.231]
[1747773620185,4.07653308,2505.9,2505.8,29.415]
[1747773620354,0.08595086,2505.9,2505.8,37.965]
[1747773620693,0.08595086,2505.9,2505.8,48.46657088]
[1747773621446,0.08595086,2505.9,2505.8,49.47066369]
[1747773622758,0.08595086,2505.9,2505.8,54.39877681]
[1747773623172,0.08595086,2505.9,2505.8,54.59863219]
[1747773623678,0.08595086,2505.9,2505.8,33.44463219]
[1747773623893,0.08595086,2505.9,2505.8,56.99307707]
[1747773624285,0.08595086,2505.9,2505.8,54.59863219]
[1747773624888,0.08595086,2505.9,2505.8,48.92074819]
[1747773625089,0.08595086,2505.9,2505.8,56.24607419]
[1747773625391,0.08595086,2505.9,2505.8,37.48651907]
[1747773625591,0.08595086,2505.9,2505.8,58.63951907]
[1747773626597,3.98948177,2506.6,2506.0,0.7942]
[1747773626800,3.98964702,2506.5,2506.1,0.55]
[1747773626962,3.98964702,2506.5,2506.4,0.55]
[1747773627162,3.98964702,2506.5,2506.4,15.875326]
[1747773627760,3.98946828,2506.6,2506.4,16.25329252]
[1747773627963,3.98962696,2506.5,2506.4,8.92796652]
[1747773628161,3.98962696,2506.5,2506.4,16.25329252]
[1747773628364,3.98962696,2506.5,2506.4,11.54335952]
[1747773628692,3.98962696,2506.5,2506.4,10.93080652]
[1747773628981,3.98962696,2506.5,2506.4,11.00883652]
[1747773629183,3.98962696,2506.5,2506.4,12.02886652]
[1747773629516,3.98962696,2506.5,2506.4,8.37796652]
[1747773629718,3.98962696,2506.5,2506.4,13.04786652]
[1747773630084,3.9894678,2506.6,2506.5,8.0]
[1747773630284,3.98933008,2506.7,2506.5,8.0]
[1747773630685,3.98933008,2506.7,2506.5,0.55]
[1747773630889,3.98933008,2506.7,2506.4,0.55]
[1747773631480,3.98915056,2506.8,2506.6,0.55]
[1747773631679,3.98915056,2506.8,2506.7,12.181]
[1747773632289,3.98915056,2506.8,2506.7,12.55850417]
[1747773633498,3.98915056,2506.8,2506.7,12.181]
[1747773637404,3.98915056,2506.8,2506.7,29.402]
[1747773640212,3.98915056,2506.8,2506.7,37.402]
[1747773641210,0.1,2506.9,2506.8,8.55]
[1747773641416,0.1,2506.9,2506.8,24.844326]
[1747773641620,0.1,2506.9,2506.8,21.331868]
[1747773643094,4.08899038,2506.9,2506.8,20.88334927]
[1747773643281,4.08899038,2506.9,2506.8,17.89607827]
[1747773643485,4.08899038,2506.9,2506.8,20.88643127]
[1747773643714,4.08899038,2506.9,2506.8,17.34607827]
[1747773644721,4.08899038,2506.9,2506.8,22.41638127]
[1747773645047,4.08899038,2506.9,2506.8,17.34607827]
[1747773645629,4.08899038,2506.9,2506.8,22.56438627]
[1747773646851,4.08899038,2506.9,2506.8,13.59538627]
[1747773647135,4.08899038,2506.9,2506.8,29.52407827]
[1747773647799,4.08899038,2506.9,2506.8,20.55607827]
[1747773648000,4.08899038,2506.9,2506.8,29.52407827]
[1747773650239,4.08899038,2506.9,2506.8,36.84940427]
[1747773650938,4.08899038,2506.9,2506.8,29.52407827]
[1747773651135,4.08899038,2506.9,2506.8,27.88140427]
[1747773651344,4.08899038,2506.9,2506.8,37.32159357]
[1747773651539,0.1,2506.9,2506.8,38.66939357]
[1747773652004,4.08899038,2506.9,2506.8,37.87159357]
[1747773652207,4.08899038,2506.9,2506.8,36.93392857]
[1747773652623,4.08899038,2506.9,2506.8,15.78692857]
[1747773652828,4.08899038,2506.9,2506.8,33.74412957]
[1747773653029,4.08899038,2506.9,2506.8,33.03432957]
[1747773653230,4.08899038,2506.9,2506.8,29.97126757]
[1747773653748,0.8151,2508.1,2507.1,0.55]
[1747773653967,3.98770119,2507.8,2507.4,0.55]
[1747773654165,3.98768971,2507.8,2507.6,8.55]
[1747773654324,4.08740808,2507.9,2507.7,24.543326]
[1747773654658,4.08740808,2507.9,2507.7,17.218]
[1747773654956,3.98764556,2507.8,2507.7,17.218]
[1747773655562,3.98764556,2507.8,2507.7,23.037237]
[1747773655862,3.98764556,2507.8,2507.7,40.357237]
[1747773656029,3.98764556,2507.8,2507.7,38.338]
[1747773656432,3.98764556,2507.8,2507.7,38.71507827]
[1747773658222,3.98764556,2507.8,2507.7,29.74807827]
[1747773658585,3.98764556,2507.8,2507.7,38.71507827]
[1747773658723,3.98764556,2507.8,2507.7,17.59507827]
[1747773658927,3.98764556,2507.8,2507.7,38.71307827]
[1747773659166,3.98764556,2507.8,2507.7,38.336]
[1747773660842,3.98764556,2507.8,2507.7,29.37]
[1747773661170,5.57885092,2507.8,2507.7,38.336]
[1747773662053,5.57885092,2507.8,2507.7,29.37]
[1747773663968,4.77134556,2507.8,2507.7,29.37]
[1747773665265,3.98764556,2507.8,2507.7,29.37]
[1747773665567,3.98764556,2507.8,2507.7,36.695326]
[1747773666132,3.98764556,2507.8,2507.7,38.336]
[1747773667039,3.98764556,2507.8,2507.7,38.7145785]
[1747773668061,3.98764556,2507.8,2507.7,38.7135785]
[1747773670778,3.98764556,2507.8,2507.7,29.7475785]
[1747773670985,4.79515092,2507.8,2507.7,38.7125785]
[1747773671677,3.98764556,2507.8,2507.7,38.7125785]
[1747773679487,3.98764556,2507.8,2507.7,29.7475785]
[1747773679653,3.98764556,2507.8,2507.7,38.7125785]
[1747773683170,3.98764556,2507.8,2507.7,29.7475785]
[1747773683359,4.78494556,2507.8,2507.7,38.6825785]
[1747773688117,7.81714272,2507.8,2507.7,0.3785785]
[1747773688297,7.81714272,2507.8,2507.7,12.4995785]
[1747773688666,7.81714272,2507.8,2507.7,12.121]
[1747773690132,7.81714272,2507.8,2507.3,17.214]
[1747773690133,3.98819494,2507.4,2507.3,17.214]
[1747773690298,4.76047217,2507.1,2507.0,0.4721893]
[1747773690667,4.76047217,2507.1,2507.0,12.5931893]
[1747773691110,4.76047217,2507.1,2507.0,0.4721893]
[1747773691844,3.98899038,2506.9,2506.8,12.121]
[1747773693836,3.98930865,2506.7,2506.6,17.214]
[1747773694037,3.98930865,2506.7,2506.6,38.302]
[1747773694532,3.98930865,2506.7,2506.6,17.214]
[1747773694695,3.98930865,2506.7,2506.6,38.305]
[1747773696299,3.98930865,2506.7,2506.6,17.214]
[1747773696612,4.74700865,2506.7,2506.6,38.305]
[1747773699045,3.98930865,2506.7,2506.6,38.305]
[1747773700953,14.08105677,2506.7,2506.6,29.339]
[1747773701254,14.08105677,2506.7,2506.6,38.307]
[1747773701456,14.08105677,2506.7,2506.6,17.214]
[1747773701740,3.99042298,2506.0,2505.9,0.62322014]
[1747773701940,3.99042298,2506.0,2505.9,12.74822014]
[1747773706154,3.99042298,2506.0,2505.9,0.62322014]
[1747773706458,3.99042298,2506.0,2505.9,21.72122014]
[1747773707741,17.10384658,2506.0,2505.9,0.62322014]
[1747773707940,3.99169726,2505.2,2505.1,0.1]
[1747773708650,3.99169726,2505.2,2505.1,0.72382174]
[1747773709590,6.90895906,2505.2,2505.1,21.167]
[1747773709735,6.90895906,2505.2,2505.1,0.1]
[1747773709935,15.99901209,2505.2,2505.1,0.1]
[1747773710654,13.85405029,2505.2,2505.1,0.1]
[1747773711935,15.99901209,2505.2,2505.1,9.072]
[1747773712369,15.99901209,2505.2,2505.1,0.1]
[1747773712682,15.99901209,2505.2,2505.1,12.198]
[1747773713175,15.99901209,2505.2,2505.1,0.1]
[1747773714786,16.54901209,2505.2,2505.1,0.1]
[1747773717591,18.69397389,2505.2,2505.1,0.1]
[1747773717886,4.75647236,2504.4,2504.1,0.1]
[1747773718188,6.13825307,2504.2,2504.1,0.1]
[1747773718385,14.13825307,2504.2,2504.1,0.1]
[1747773719089,11.99329127,2504.2,2504.1,0.1]
[1747773720975,11.99329127,2504.2,2504.1,9.075]
[1747773721176,3.99329127,2504.2,2504.1,9.8737]
[1747773722715,3.99303418,2504.4,2504.1,9.8737]
[1747773722996,0.8001,2505.4,2504.2,0.86532973]
[1747773723195,3.99122637,2505.5,2504.6,0.8254]
[1747773723516,3.99233471,2504.8,2504.7,21.9044]
[1747773723679,3.99197561,2505.1,2504.7,21.079]
[1747773723993,3.99199643,2505.1,2504.8,0.8254]
[1747773724203,3.99137862,2505.4,2504.9,18.0604]
[1747773724400,3.99201596,2505.0,2504.9,18.0604]
[1747773724894,3.99201596,2505.0,2504.9,24.1618]
[1747773725271,3.99201596,2505.0,2504.9,21.66798]
[1747773725495,3.99201596,2505.0,2504.9,22.04637377]
[1747773725674,3.99193219,2505.1,2505.0,0.8283]
[1747773725873,3.99193219,2505.1,2505.0,8.153626]
[1747773726069,3.99193219,2505.1,2505.0,0.8283]
[1747773726374,3.99193219,2505.1,2505.0,21.9063]
[1747773727395,3.99193219,2505.1,2505.0,22.30220291]
[1747773727998,3.99193219,2505.1,2505.0,22.68068864]
[1747773729919,3.99193219,2505.1,2505.0,22.67968864]
[1747773730790,3.99193219,2505.1,2505.0,1.20678573]
[1747773731117,3.99193219,2505.1,2505.0,13.30778573]
[1747773731319,3.99193219,2505.1,2505.0,22.28278573]
[1747773732518,3.99107,2505.6,2505.0,22.28278573]
[1747773732734,3.99074788,2505.8,2505.2,0.7684]
[1747773733017,3.99140052,2505.4,2505.2,0.7684]
[1747773733582,3.99153793,2505.3,2505.2,1.3184]
[1747773733783,3.99153793,2505.3,2505.2,0.7684]
[1747773733996,3.99153793,2505.3,2505.2,22.22188573]
[1747773735585,3.99129377,2505.5,2505.2,22.22188573]
[1747773735791,3.99144688,2505.4,2505.2,22.22188573]
[1747773736193,3.99138892,2505.4,2505.2,22.22188573]
[1747773736387,3.9906749,2505.9,2505.2,22.22188573]
[1747773736594,3.99129332,2505.5,2505.3,0.92848573]
[1747773736840,10.18,2506.4,2505.5,0.7684]
[1747773737020,3.99070908,2505.9,2505.7,0.7684]
[1747773737237,3.99076728,2505.8,2505.7,0.7684]
[1747773737395,3.99076728,2505.8,2505.7,21.8424]
[1747773738543,3.99076728,2505.8,2505.7,22.22088573]
[1747773739235,3.99065973,2505.9,2505.7,22.22088573]
[1747773739437,3.99059512,2505.9,2505.7,22.22088573]
[1747773739603,3.99074147,2505.8,2505.7,22.77088573]
[1747773739802,3.99074147,2505.8,2505.7,1.14688573]
[1747773740041,3.99074147,2505.8,2505.7,22.18688573]
[1747773740701,3.99074147,2505.8,2505.7,22.73688573]
[1747773741037,3.99074147,2505.8,2505.7,1.69688573]
[1747773741238,3.99074147,2505.8,2505.7,22.73688573]
[1747773742647,3.99074147,2505.8,2505.7,1.69688573]
[1747773742946,3.99074147,2505.8,2505.7,13.21288573]
[1747773743248,3.99074147,2505.8,2505.7,0.37848573]
[1747773743407,3.99074147,2505.8,2505.7,21.41748573]
[1747773744250,3.99074147,2505.8,2505.7,21.039]
[1747773747774,3.99074147,2505.8,2505.7,12.066]
[1747773747915,3.99074147,2505.8,2505.7,21.039]
[1747773749212,3.99074147,2505.8,2505.7,12.066]
[1747773749414,3.99074147,2505.8,2505.7,21.038]
[1747773749957,3.99074147,2505.8,2505.7,21.41834131]
[1747773755368,3.99074147,2505.8,2505.7,12.44634131]
[1747773755569,5.5748769,2505.8,2505.7,12.44634131]
[1747773755865,5.5748769,2505.8,2505.7,21.41634131]
[1747773756565,4.7888769,2505.8,2505.7,21.41634131]
[1747773757641,4.7888769,2505.8,2505.7,12.44434131]
[1747773757833,4.7888769,2505.8,2505.7,21.41634131]
[1747773757834,5.5748769,2505.8,2505.7,21.41634131]
[1747773758471,5.5748769,2505.8,2505.7,0.38034131]
[1747773758780,3.99090074,2505.7,2505.6,26.199]
[1747773758944,5.34653979,2505.7,2505.6,17.227]
[1747773759537,5.34653979,2505.7,2505.6,38.264]
[1747773759875,3.99090074,2505.7,2505.6,38.264]
[1747773760365,3.99090074,2505.7,2505.6,38.64565714]
[1747773767472,3.99090074,2505.7,2505.6,39.47795714]
[1747773767671,3.99090074,2505.7,2505.6,38.64565714]
[1747773768082,4.80300074,2505.7,2505.6,38.64665714]
[1747773770328,3.99090074,2505.7,2505.6,38.64665714]
[1747773772410,4.87132496,2505.7,2505.6,17.60865714]
[1747773772711,4.87132496,2505.7,2505.6,38.61465714]
[1747773774118,4.87132496,2505.7,2505.6,17.60865714]
[1747773774319,4.87132496,2505.7,2505.6,38.61465714]
[1747773774320,5.62612496,2505.7,2505.6,38.61465714]
[1747773775025,5.62612496,2505.7,2505.6,29.64165714]
[1747773775385,5.62612496,2505.7,2505.6,29.26]
[1747773776125,3.99090074,2505.7,2505.6,29.26]
[1747773776500,3.99090074,2505.7,2505.6,30.0771]
[1747773776701,3.99090074,2505.7,2505.6,29.26]
[1747773777010,3.99090074,2505.7,2505.6,38.233]
[1747773777387,3.99090074,2505.7,2505.6,38.61506854]
[1747773778184,4.81547606,2505.7,2505.6,38.61506854]
[1747773779619,4.81547606,2505.7,2505.6,17.60906854]
[1747773779928,4.81547606,2505.7,2505.6,38.61506854]
[1747773783425,3.99090074,2505.7,2505.6,38.61506854]
[1747773786029,3.99090074,2505.7,2505.6,39.36766854]
[1747773788225,3.99090074,2505.7,2505.6,39.84525422]
[1747773789334,3.99090074,2505.7,2505.6,39.09265422]
[1747773791215,3.99090074,2505.7,2505.6,38.61506854]
[1747773792545,3.99090074,2505.7,2505.6,17.60906854]
[1747773792747,3.99090074,2505.7,2505.6,38.61506854]
[1747773793044,3.99090074,2505.7,2505.6,17.60906854]
[1747773793546,4.78906496,2505.7,2505.6,38.61506854]
[1747773794103,3.99090074,2505.7,2505.6,38.61506854]
[1747773794621,3.99090074,2505.7,2505.6,39.41636854]
[1747773797249,3.99090074,2505.7,2505.6,38.61506854]
[1747773800611,3.99033387,2506.1,2505.8,0.8206]
[1747773800921,3.99026375,2506.1,2506.0,0.55]
[1747773801247,3.99026375,2506.1,2506.0,8.973]
[1747773801407,3.99074147,2505.8,2505.7,8.753]
[1747773801611,3.99074147,2505.8,2505.7,29.725]
[1747773801953,3.99074147,2505.8,2505.7,9.77184945]
[1747773802147,3.99074147,2505.8,2505.7,30.74384945]
[1747773803535,3.99074147,2505.8,2505.7,30.58396217]
[1747773803739,3.99074147,2505.8,2505.7,29.83096217]
[1747773805577,3.99074147,2505.8,2505.7,37.91518817]
[1747773806401,4.74918189,2506.6,2505.8,1.3183]
[1747773806542,3.99053787,2506.0,2505.8,0.55]
[1747773806744,3.99018726,2506.2,2506.1,0.7683]
[1747773807041,3.99018726,2506.2,2506.1,30.13305834]
[1747773807453,3.99018726,2506.2,2506.1,22.51512688]
[1747773807832,3.99018726,2506.2,2506.1,29.84045288]
[1747773808036,3.99010454,2506.2,2506.1,29.84045288]
[1747773808472,3.99003974,2506.3,2506.1,29.84045288]
[1747773808677,3.98971805,2506.5,2506.3,0.7911]
[1747773808855,3.98978614,2506.4,2506.3,0.7911]
[1747773809171,3.98978614,2506.4,2506.3,5.455542]
[1747773809755,3.98978614,2506.4,2506.3,6.31274728]
[1747773810957,3.98978614,2506.4,2506.3,5.83761054]
[1747773811576,3.98978614,2506.4,2506.3,13.83761054]
[1747773813355,3.98978614,2506.4,2506.3,14.31206273]
[1747773815044,3.98978614,2506.4,2506.3,13.83761054]
[1747773815679,3.98978614,2506.4,2506.3,18.14316854]
[1747773816570,3.98978614,2506.4,2506.3,24.71172354]
[1747773819391,3.98978614,2506.4,2506.3,35.36516854]
[1747773819888,3.98978614,2506.4,2506.3,28.40216854]
[1747773820094,3.98978614,2506.4,2506.3,47.36016854]
[1747773820402,3.98978614,2506.4,2506.3,52.71771954]
[1747773822197,3.98978614,2506.4,2506.3,47.35916854]
[1747773822695,3.98978614,2506.4,2506.3,26.39516854]
[1747773822917,3.98978614,2506.4,2506.3,43.35416854]
[1747773824200,3.98978614,2506.4,2506.3,39.35916854]
[1747773824673,3.98978614,2506.4,2506.3,43.35226854]
[1747773825605,3.98978614,2506.4,2506.3,42.56116854]
[1747773826365,3.98978614,2506.4,2506.3,40.61885854]
[1747773826567,3.98978614,2506.4,2506.3,38.56806854]
[1747773826779,5.57183047,2506.4,2506.3,29.59806854]
[1747773827007,13.57183047,2506.4,2506.3,29.59806854]
[1747773827192,13.57183047,2506.4,2506.3,29.216]
[1747773827531,4.77516002,2505.6,2505.5,17.69545219]
[1747773827824,4.77516002,2505.6,2505.5,38.65845219]
[1747773828229,4.77516002,2505.6,2505.5,38.184]
[1747773829027,4.77516002,2505.6,2505.5,17.221]
[1747773829229,5.86666877,2505.6,2505.5,29.217]
[1747773830932,3.99233471,2504.8,2504.7,0.40647617]
[1747773831076,3.99233471,2504.8,2504.7,38.56247617]
[1747773831276,3.99233471,2504.8,2504.7,38.156]
[1747773832216,3.99233471,2504.8,2504.7,38.53560776]
[1747773833187,3.99233471,2504.8,2504.7,29.56560776]
[1747773833395,4.78013471,2504.8,2504.7,38.53760776]
[1747773834692,4.78013471,2504.8,2504.7,38.158]
[1747773836218,3.99233471,2504.8,2504.7,38.158]
[1747773838287,3.99233471,2504.8,2504.7,38.159]
[1747773838712,3.99233471,2504.8,2504.7,29.186]
[1747773839025,3.99233471,2504.8,2504.7,17.224]
[1747773839186,3.99233471,2504.8,2504.7,38.164]
[1747773846897,3.99233471,2504.8,2504.7,17.224]
[1747773847101,3.99233471,2504.8,2504.7,38.167]
[1747773848940,3.99221009,2504.9,2504.7,38.167]
[1747773849118,0.7577,2505.3,2504.7,38.167]
[1747773849330,3.99233471,2504.8,2504.7,38.167]
[1747773849528,3.99233471,2504.8,2504.7,45.492326]
[1747773850038,3.99233471,2504.8,2504.7,45.268916]
[1747773850539,3.99233471,2504.8,2504.7,42.793484]
[1747773851349,3.99233471,2504.8,2504.7,40.792182]
[1747773854745,3.99233471,2504.8,2504.7,38.167]
[1747773855356,3.99233471,2504.8,2504.7,42.383383]
[1747773855664,3.99233471,2504.8,2504.7,42.76200061]
[1747773857754,3.99233471,2504.8,2504.7,17.60261761]
[1747773857923,3.99233471,2504.8,2504.7,38.54561761]
[1747773858754,3.99233471,2504.8,2504.7,29.57061761]
[1747773858957,13.5515882,2504.8,2504.7,29.57061761]
[1747773859164,13.5515882,2504.8,2504.7,38.54561761]
[1747773860860,13.5515882,2504.8,2504.7,38.167]
[1747773861026,13.5515882,2504.8,2504.7,29.192]
[1747773861427,12.7907882,2504.8,2504.7,38.167]
[1747773861755,13.5515882,2504.8,2504.7,29.161]
[1747773862545,11.99233471,2504.8,2504.7,29.161]